fUSD/lending_fUSD_20250812
["ID","MTS","AMOUNT","RATE_DAILY","PERIOD"]
[378684148,1754958677596,-400.0,0.00016812,2]
[378684149,1754958677606,-400.0,0.00016812,2]
[378684150,1754958677617,-400.0,0.00016812,2]
[378684151,1754958677626,-400.0,0.00016812,2]
[378684152,1754958677635,-400.0,0.00016812,2]
[378684153,1754958677645,-400.0,0.00016812,2]
[378684154,1754958677655,-400.0,0.00016812,2]
[378684155,1754958677664,-400.0,0.00016812,2]
[378684156,1754958677673,-262.74,0.00016812,2]
[378684157,1754958677682,-400.0,0.00016812,2]
[378684158,1754958677697,-400.0,0.00016812,2]
[378684159,1754958677708,-400.0,0.00016812,2]
[378684160,1754958677717,-400.0,0.00016812,2]
[378684161,1754958677728,-400.0,0.00016812,2]
[378684162,1754958677738,-400.0,0.00016812,2]
[378684163,1754958677750,-400.0,0.00016812,2]
[378684164,1754958677760,-400.0,0.00016812,2]
[378684165,1754958677769,-400.0,0.00016812,2]
[378684166,1754958677779,-400.0,0.00016812,2]
[378684167,1754958677789,-400.0,0.00016812,2]
[378684168,1754958677801,-151.0,0.00016812,2]
[378684169,1754958677811,-400.0,0.00016812,2]
[378684170,1754958677821,-158.044768,0.00016812,2]
[378684171,1754958677831,-400.0,0.00016812,2]
[378684172,1754958677840,-400.0,0.00016812,2]
[378684173,1754958677850,-642.099351,0.00016812,2]
[378684174,1754958677860,-400.0,0.00016812,2]
[378684175,1754958677869,-400.0,0.00016812,2]
[378684176,1754958677879,-400.0,0.00016812,2]
[378684177,1754958677889,-242.4749189,0.00016812,2]
[378684178,1754958677898,-400.0,0.00016812,2]
[378684179,1754958677908,-400.0,0.00016812,2]
[378684180,1754958677917,-400.0,0.00016812,2]
[378684181,1754958677927,-400.0,0.00016812,2]
[378684182,1754958677937,-400.0,0.00016812,2]
[378684183,1754958677951,-522.12943619,0.00016812,2]
[378684184,1754958677961,-400.0,0.00016812,2]
[378684185,1754958677973,-400.0,0.00016812,2]
[378684186,1754958677983,-151.0,0.00016812,2]
[378684187,1754958677993,-245.019272,0.00016812,2]
[378684188,1754958678003,-400.0,0.00016812,2]
[378684189,1754958678013,-400.0,0.00016812,2]
[378684190,1754958678025,-151.0,0.00016812,2]
[378684191,1754958678036,-400.0,0.00016812,2]
[378684192,1754958678047,-400.0,0.00016812,2]
[378684193,1754958678057,-400.0,0.00016812,2]
[378684194,1754958678066,-400.0,0.00016812,2]
[378684195,1754958678076,-400.0,0.00016812,2]
[378684196,1754958678086,-151.0,0.00016819,2]
[378684197,1754958678095,-759.888854,0.00016819,2]
[378684198,1754958678104,-759.888854,0.00016819,2]
[378684199,1754958678113,-151.0,0.00016821,2]
[378684200,1754958678123,-12856.44550175,0.00016829,2]
[378684201,1754958678133,-211.0,0.00016839,2]
[378684202,1754958678142,-229.09562967,0.00016864,2]
[378684203,1754958678152,-223.05,0.00016888,2]
[378684204,1754958678162,-1555.5,0.0001689,2]
[378684205,1754958678171,-229.09562967,0.00016922,2]
[378684206,1754958678181,-150.0,0.0001695,2]
[378684207,1754958678192,-1084.0,0.00016952,2]
[378684208,1754958678203,-150.0,0.00016966,2]
[378684209,1754958678212,-1353.75,0.00016979,2]
[378684210,1754958678222,-400.0,0.00016979,2]
[378684211,1754958678231,-400.0,0.00016979,2]
[378684212,1754958678241,-400.0,0.00016979,2]
[378684213,1754958678250,-1368.73,0.00016979,2]
[378684214,1754958678260,-835.27,0.00016979,2]
[378684215,1754958678270,-638.05,0.00016979,2]
[378684216,1754958678280,-1206.42,0.00016979,2]
[378684217,1754958678290,-188.3,0.00016979,2]
[378684218,1754958678299,-8653.14,0.00016979,2]
[378684219,1754958678308,-229.09562967,0.0001698,2]
[378684220,1754958678317,-1555.5,0.00016982,2]
[378684221,1754958678328,-600.0,0.00016983,2]
[378684222,1754958678339,-162.99337708,0.00016984,2]
[378684223,1754958678349,-574.72,0.00016991,2]
[378684224,1754958678358,-978.66,0.00016991,2]
[378684225,1754958678368,-539.9,0.00016991,2]
[378684226,1754958678377,-400.0,0.00016991,2]
[378684227,1754958678388,-480.66,0.00016991,2]
[378684228,1754958678398,-446.06,0.00016991,2]
[378684229,1754958678408,-632.96,0.00016991,2]
[378684230,1754958678418,-833.05,0.00016991,2]
[378684231,1754958678428,-400.0,0.00016991,2]
[378684232,1754958678437,-594.7,0.00016992,2]
[378684233,1754958678448,-400.0,0.00016992,2]
[378684234,1754958678458,-216.10807996,0.00016992,2]
[378684235,1754958678467,-400.0,0.00016992,2]
[378684236,1754958678476,-400.0,0.00016992,2]
[378684237,1754958678486,-400.0,0.00016992,2]
[378684238,1754958678495,-400.0,0.00016992,2]
[378684239,1754958678505,-400.0,0.00016992,2]
[378684240,1754958678514,-400.0,0.00016992,2]
[378684241,1754958678524,-400.0,0.00016992,2]
[378684242,1754958678533,-302.87199332,0.00016992,2]
[378684243,1754958678542,-400.0,0.00016992,2]
[378684244,1754958678552,-400.0,0.00016992,2]
[378684245,1754958678562,-400.0,0.00016992,2]
[378684246,1754958678571,-400.0,0.00016992,2]
[378684247,1754958678580,-522.9507894,0.00016992,2]
[378684248,1754958678589,-400.0,0.00016992,2]
[378684249,1754958678598,-400.0,0.00016992,2]
[378684250,1754958678607,-490.62492342,0.00016992,2]
[378684251,1754958678617,-541.43,0.00016992,2]
[378684252,1754958678627,-400.0,0.00016992,2]
[378684253,1754958678636,-400.0,0.00016992,2]
[378684254,1754958678645,-400.0,0.00016992,2]
[378684255,1754958678653,-400.0,0.00016992,2]
[378684256,1754958678663,-335.67393089,0.00016992,2]
[378684257,1754958678672,-586.31,0.00016992,2]
[378684258,1754958678681,-400.0,0.00016992,2]
[378684259,1754958678692,-400.0,0.00016992,2]
[378684260,1754958678701,-400.0,0.00016992,2]
[378684261,1754958678711,-400.0,0.00016992,2]
[378684262,1754958678720,-400.0,0.00016992,2]
[378684263,1754958678730,-445.65,0.00016992,2]
[378684264,1754958678739,-400.0,0.00016992,2]
[378684265,1754958678748,-400.0,0.00016992,2]
[378684266,1754958678758,-400.0,0.00016992,2]
[378684267,1754958678768,-555.3,0.00016992,2]
[378684268,1754958678777,-400.0,0.00016992,2]
[378684269,1754958678787,-455.46,0.00016992,2]
[378684270,1754958678799,-528.53,0.00016992,2]
[378684271,1754958678814,-808.45,0.00016992,2]
[378684272,1754958678826,-400.0,0.00016992,2]
[378684273,1754958678835,-400.0,0.00016992,2]
[378684274,1754958678846,-400.0,0.00016992,2]
[378684275,1754958678856,-600.96,0.00016992,2]
[378684276,1754958678865,-400.0,0.00016992,2]
[378684277,1754958678875,-400.0,0.00016992,2]
[378684278,1754958678884,-400.0,0.00016992,2]
[378684279,1754958678894,-400.0,0.00016992,2]
[378684280,1754958678904,-400.0,0.00016992,2]
[378684281,1754958678913,-400.0,0.00016992,2]
[378684282,1754958678922,-400.0,0.00016992,2]
[378684283,1754958678932,-482.19,0.00016992,2]
[378684284,1754958678943,-400.0,0.00016992,2]
[378684285,1754958678952,-349.959486,0.00016992,2]
[378684286,1754958678961,-548.353883,0.00016992,2]
[378684287,1754958678972,-400.0,0.00016992,2]
[378684288,1754958678983,-611.02,0.00016992,2]
[378684289,1754958678993,-400.0,0.00016992,2]
[378684290,1754958679003,-409.66,0.00016992,2]
[378684291,1754958679012,-400.0,0.00016992,2]
[378684292,1754958679022,-652.048561,0.00016992,2]
[378684293,1754958679031,-400.0,0.00016992,2]
[378684294,1754958679040,-400.0,0.00016992,2]
[378684295,1754958679050,-800.99,0.00016992,2]
[378684296,1754958679059,-151.0,0.00016992,2]
[378684297,1754958679068,-2551.9,0.00016992,2]
[378684298,1754958679079,-151.0,0.00016992,2]
[378684299,1754958679088,-400.0,0.00016992,2]
[378684300,1754958679098,-400.0,0.00016992,2]
[378684301,1754958679108,-400.0,0.00016992,2]
[378684302,1754958679118,-400.0,0.00016992,2]
[378684303,1754958679128,-151.0,0.00016992,2]
[378684304,1754958679138,-820.43,0.00016992,2]
[378684305,1754958679148,-565.37,0.00016992,2]
[378684306,1754958679158,-400.0,0.00016992,2]
[378684307,1754958679167,-573.02,0.00016992,2]
[378684308,1754958679178,-400.0,0.00016992,2]
[378684309,1754958679186,-1278.03,0.00016992,2]
[378684310,1754958679199,-422.09,0.00016992,2]
[378684311,1754958679209,-683.8,0.00016992,2]
[378684312,1754958679218,-400.0,0.00016992,2]
[378684313,1754958679228,-1082.91,0.00016992,2]
[378684314,1754958679237,-400.0,0.00016992,2]
[378684315,1754958679247,-400.0,0.00016992,2]
[378684316,1754958679256,-400.0,0.00016992,2]
[378684317,1754958679265,-1009.96,0.00016992,2]
[378684318,1754958679275,-400.0,0.00016992,2]
[378684319,1754958679284,-400.0,0.00016992,2]
[378684320,1754958679293,-400.0,0.00016992,2]
[378684321,1754958679303,-487.32,0.00016992,2]
[378684322,1754958679312,-471.77,0.00016992,2]
[378684323,1754958679322,-151.0,0.00016992,2]
[378684324,1754958679331,-182.570008,0.00016992,2]
[378684325,1754958679341,-405.23,0.00016992,2]
[378684326,1754958679350,-400.0,0.00016992,2]
[378684327,1754958679360,-400.0,0.00016992,2]
[378684328,1754958679370,-482.58,0.00016992,2]
[378684329,1754958679380,-1964.74,0.00016992,2]
[378684330,1754958679397,-400.0,0.00016992,2]
[378684331,1754958679406,-591.6,0.00016992,2]
[378684332,1754958679416,-400.0,0.00016992,2]
[378684333,1754958679426,-400.0,0.00016992,2]
[378684334,1754958679435,-400.0,0.00016992,2]
[378684335,1754958679445,-400.0,0.00016992,2]
[378684336,1754958679455,-400.0,0.00016992,2]
[378684337,1754958679464,-618.38,0.00016992,2]
[378684338,1754958679473,-448.94,0.00016992,2]
[378684339,1754958679483,-400.0,0.00016992,2]
[378684340,1754958679492,-400.0,0.00016992,2]
[378684341,1754958679502,-2118.04,0.00016992,2]
[378684342,1754958679511,-1807.34,0.00016992,2]
[378684343,1754958679520,-400.0,0.00016992,2]
[378684344,1754958679530,-400.0,0.00016992,2]
[378684345,1754958679539,-400.0,0.00016992,2]
[378684346,1754958679549,-927.74,0.00016992,2]
[378684347,1754958679558,-936.33,0.00016992,2]
[378684348,1754958679567,-977.28,0.00016992,2]
[378684349,1754958679577,-609.57,0.00016992,2]
[378684350,1754958679586,-400.0,0.00016992,2]
[378684351,1754958679595,-1290.89,0.00016992,2]
[378684352,1754958679604,-400.0,0.00016992,2]
[378684353,1754958679614,-400.0,0.00016992,2]
[378684354,1754958679623,-417.25,0.00016992,2]
[378684355,1754958679632,-498.28,0.00016992,2]
[378684356,1754958679641,-400.0,0.00016992,2]
[378684357,1754958679650,-510.01,0.00016992,2]
[378684358,1754958679660,-400.0,0.00016992,2]
[378684359,1754958679669,-400.0,0.00016992,2]
[378684360,1754958679680,-400.0,0.00016992,2]
[378684361,1754958679689,-400.0,0.00016992,2]
[378684362,1754958679699,-400.0,0.00016992,2]
[378684363,1754958679708,-151.0,0.00016993,2]
[378684364,1754958679718,-151.0,0.00016993,2]
[378684365,1754958679727,-151.0,0.00016993,2]
[378684366,1754958679737,-151.0,0.00016993,2]
[378684367,1754958679746,-151.0,0.00016993,2]
[378684368,1754958679755,-151.0,0.00016993,2]
[378684369,1754958679765,-400.0,0.00016993,2]
[378684370,1754958679774,-400.0,0.00016993,2]
[378684371,1754958679783,-543.52,0.00016993,2]
[378684372,1754958679792,-369.78418696,0.00016993,2]
[378684373,1754958679805,-400.0,0.00016993,2]
[378684374,1754958679814,-3558.75,0.00016993,2]
[378684375,1754958679823,-302.138667,0.00016993,2]
[378684376,1754958679832,-302.138667,0.00016993,2]
[378684377,1754958679841,-415.04,0.00016993,2]
[378684378,1754958679851,-302.138667,0.00016993,2]
[378684379,1754958679860,-302.138667,0.00016993,2]
[378684380,1754958679870,-167.192762,0.00016993,2]
[378684381,1754958679879,-400.0,0.00016993,2]
[378684382,1754958679888,-151.0,0.00016993,2]
[378684383,1754958679897,-151.0,0.00016993,2]
[378684384,1754958679906,-541.87,0.00016993,2]
[378684385,1754958679914,-686.48,0.00016993,2]
[378684386,1754958679923,-400.0,0.00016993,2]
[378684387,1754958679932,-843.54,0.00016993,2]
[378684388,1754958679942,-501.49,0.00016993,2]
[378684389,1754958679951,-400.0,0.00016993,2]
[378684390,1754958679961,-400.0,0.00016993,2]
[378684391,1754958679970,-411.31,0.00016993,2]
[378684392,1754958679980,-416.82,0.00016993,2]
[378684393,1754958679989,-400.0,0.00016993,2]
[378684394,1754958679998,-400.0,0.00016993,2]
[378684395,1754958680007,-400.0,0.00016993,2]
[378684396,1754958680016,-674.0,0.00016993,2]
[378684397,1754958680025,-400.0,0.00016993,2]
[378684398,1754958680035,-412.88,0.00016993,2]
[378684399,1754958680044,-400.0,0.00016993,2]
[378684400,1754958680053,-400.0,0.00016993,2]
[378684401,1754958680062,-400.0,0.00016993,2]
[378684402,1754958680071,-400.0,0.00016993,2]
[378684403,1754958680080,-941.84,0.00016993,2]
[378684404,1754958680089,-400.0,0.00016993,2]
[378684405,1754958680098,-435.86,0.00016993,2]
[378684406,1754958680107,-415.91,0.00016993,2]
[378684407,1754958680116,-1018.78,0.00016993,2]
[378684408,1754958680125,-400.0,0.00016993,2]
[378684409,1754958680134,-400.0,0.00016993,2]
[378684410,1754958680143,-400.0,0.00016993,2]
[378684411,1754958680152,-521.61231742,0.00016993,2]
[378684412,1754958680161,-400.0,0.00016993,2]
[378684413,1754958680170,-400.0,0.00016993,2]
[378684414,1754958680179,-400.0,0.00016993,2]
[378684415,1754958680188,-400.0,0.00016993,2]
[378684416,1754958680200,-400.0,0.00016993,2]
[378684417,1754958680208,-716.34,0.00016993,2]
[378684418,1754958680217,-158.522638,0.00016993,2]
[378684419,1754958680225,-158.522638,0.00016993,2]
[378684420,1754958680234,-400.0,0.00016993,2]
[378684421,1754958680243,-806.63,0.00016993,2]
[378684422,1754958680252,-400.0,0.00016993,2]
[378684423,1754958680261,-158.522638,0.00016993,2]
[378684424,1754958680270,-158.522638,0.00016993,2]
[378684425,1754958680279,-213.538052,0.00016993,2]
[378684426,1754958680289,-400.0,0.00016993,2]
[378684427,1754958680298,-400.0,0.00016993,2]
[378684428,1754958680308,-400.0,0.00016993,2]
[378684429,1754958680318,-487.36,0.00016993,2]
[378684430,1754958680329,-403.05,0.00016993,2]
[378684431,1754958680338,-400.0,0.00016993,2]
[378684432,1754958680347,-400.0,0.00016993,2]
[378684433,1754958680357,-400.0,0.00016993,2]
[378684434,1754958680367,-400.0,0.00016993,2]
[378684435,1754958680376,-400.0,0.00016993,2]
[378684436,1754958680385,-400.0,0.00016993,2]
[378684437,1754958680394,-400.0,0.00016993,2]
[378684438,1754958680404,-400.0,0.00016993,2]
[378684439,1754958680413,-406.99,0.00016993,2]
[378684440,1754958680422,-924.79,0.00016993,2]
[378684441,1754958680431,-896.54,0.00016993,2]
[378684442,1754958680440,-400.0,0.00016993,2]
[378684443,1754958680451,-400.0,0.00016993,2]
[378684444,1754958680460,-400.0,0.00016993,2]
[378684445,1754958680469,-400.0,0.00016993,2]
[378684446,1754958680478,-400.0,0.00016993,2]
[378684447,1754958680487,-400.0,0.00016993,2]
[378684448,1754958680496,-400.0,0.00016993,2]
[378684449,1754958680506,-989.5,0.00016993,2]
[378684450,1754958680515,-400.0,0.00016993,2]
[378684451,1754958680524,-400.0,0.00016993,2]
[378684452,1754958680534,-151.0,0.00016993,2]
[378684453,1754958680543,-151.0,0.00016993,2]
[378684454,1754958680551,-517.851066,0.00016993,2]
[378684455,1754958680561,-429.77,0.00016993,2]
[378684456,1754958680570,-517.851066,0.00016993,2]
[378684457,1754958680579,-517.851066,0.00016993,2]
[378684458,1754958680587,-517.851066,0.00016993,2]
[378684459,1754958680596,-376.95171228,0.00016993,2]
[378684460,1754958680605,-400.0,0.00016993,2]
[378684461,1754958680614,-446.06,0.00016993,2]
[378684462,1754958680623,-400.0,0.00016993,2]
[378684463,1754958680632,-840.46,0.00016993,2]
[378684464,1754958680642,-451.58,0.00016993,2]
[378684465,1754958680651,-5484.25,0.00016993,2]
[378684466,1754958680660,-400.0,0.00016993,2]
[378684467,1754958680669,-444.43,0.00016993,2]
[378684468,1754958680679,-400.0,0.00016993,2]
[378684469,1754958680688,-1135.69,0.00016993,2]
[378684470,1754958680699,-400.0,0.00016993,2]
[378684471,1754958680708,-473.46,0.00016993,2]
[378684472,1754958680718,-759.888854,0.00016993,2]
[378684473,1754958680727,-400.0,0.00016993,2]
[378684474,1754958680741,-759.888854,0.00016993,2]
[378684475,1754958680752,-504.02,0.00016993,2]
[378684476,1754958680762,-151.0,0.00016993,2]
[378684477,1754958680772,-400.0,0.00016993,2]
[378684478,1754958680782,-151.0,0.00016993,2]
[378684479,1754958680792,-562.93,0.00016993,2]
[378684480,1754958680802,-425.72,0.00016993,2]
[378684481,1754958680812,-485.33,0.00016993,2]
[378684482,1754958680823,-716.05,0.00016993,2]
[378684483,1754958680832,-642.099351,0.00016993,2]
[378684484,1754958680842,-642.099351,0.00016993,2]
[378684485,1754958680852,-400.0,0.00016993,2]
[378684486,1754958680862,-233.2558,0.00016993,2]
[378684487,1754958680872,-409.81,0.00016993,2]
[378684488,1754958680881,-1367.17,0.00016993,2]
[378684489,1754958680892,-257.82598,0.00016993,2]
[378684490,1754958680901,-418.15,0.00016993,2]
[378684491,1754958680910,-400.0,0.00016993,2]
[378684492,1754958680920,-450.61437002,0.00016993,2]
[378684493,1754958680929,-400.0,0.00016993,2]
[378684494,1754958680938,-487.67,0.00016993,2]
[378684495,1754958680951,-400.0,0.00016993,2]
[378684496,1754958680961,-412.94502159,0.00016993,2]
[378684497,1754958680970,-250.56163,0.00016993,2]
[378684498,1754958680980,-463.33,0.00016993,2]
[378684499,1754958680990,-364.83216781,0.00016993,2]
[378684500,1754958680999,-1067.035245,0.00016993,2]
[378684501,1754958681009,-1067.035245,0.00016993,2]
[378684502,1754958681018,-400.0,0.00016993,2]
[378684503,1754958681027,-400.0,0.00016993,2]
[378684504,1754958681037,-1067.035245,0.00016993,2]
[378684505,1754958681047,-1067.035245,0.00016993,2]
[378684506,1754958681057,-400.0,0.00016993,2]
[378684507,1754958681066,-1005.19,0.00016993,2]
[378684508,1754958681076,-400.0,0.00016993,2]
[378684509,1754958681085,-456.21,0.00016993,2]
[378684510,1754958681095,-400.0,0.00016993,2]
[378684511,1754958681105,-760.85,0.00016993,2]
[378684512,1754958681114,-400.0,0.00016993,2]
[378684513,1754958681123,-151.0,0.00016993,2]
[378684514,1754958681133,-151.0,0.00016993,2]
[378684515,1754958681142,-461.28,0.00016993,2]
[378684516,1754958681152,-400.0,0.00016993,2]
[378684517,1754958681161,-400.0,0.00016993,2]
[378684518,1754958681171,-668.63,0.00016993,2]
[378684519,1754958681181,-415.53,0.00016993,2]
[378684520,1754958681190,-1056.23,0.00016993,2]
[378684521,1754958681204,-151.0,0.00016993,2]
[378684522,1754958681213,-151.0,0.00016993,2]
[378684523,1754958681223,-400.0,0.00016993,2]
[378684524,1754958681232,-400.0,0.00016993,2]
[378684525,1754958681241,-401.8,0.00016993,2]
[378684526,1754958681252,-400.0,0.00016993,2]
[378684527,1754958681262,-400.0,0.00016993,2]
[378684528,1754958681273,-1254.99,0.00016993,2]
[378684529,1754958681283,-400.0,0.00016993,2]
[378684530,1754958681293,-151.0,0.00016993,2]
[378684531,1754958681302,-400.0,0.00016993,2]
[378684532,1754958681312,-400.0,0.00016993,2]
[378684533,1754958681322,-400.0,0.00016993,2]
[378684534,1754958681332,-448.0,0.00016993,2]
[378684535,1754958681342,-416.54,0.00016993,2]
[378684536,1754958681351,-434.77,0.00016993,2]
[378684537,1754958681361,-400.0,0.00016993,2]
[378684538,1754958681371,-400.0,0.00016993,2]
[378684539,1754958681380,-400.0,0.00016993,2]
[378684540,1754958681390,-400.0,0.00016993,2]
[378684541,1754958681400,-1026.25,0.00016993,2]
[378684542,1754958681410,-400.0,0.00016993,2]
[378684543,1754958681420,-428.67,0.00016993,2]
[378684544,1754958681430,-855.22,0.00016993,2]
[378684545,1754958681440,-527.94,0.00016993,2]
[378684546,1754958681454,-400.0,0.00016993,2]
[378684547,1754958681464,-400.0,0.00016993,2]
[378684548,1754958681473,-690.8,0.00016993,2]
[378684549,1754958681484,-358.22285068,0.00016993,2]
[378684550,1754958681494,-660.29,0.00016993,2]
[378684551,1754958681504,-661.7,0.00016993,2]
[378684552,1754958681514,-400.0,0.00016993,2]
[378684553,1754958681523,-400.0,0.00016993,2]
[378684554,1754958681534,-400.0,0.00016993,2]
[378684555,1754958681544,-400.0,0.00016993,2]
[378684556,1754958681554,-553.06,0.00016993,2]
[378684557,1754958681564,-485.52,0.00016993,2]
[378684558,1754958681574,-414.15,0.00016993,2]
[378684559,1754958681584,-400.0,0.00016993,2]
[378684560,1754958681593,-689.02,0.00016993,2]
[378684561,1754958681604,-466.29,0.00016993,2]
[378684562,1754958681613,-151.93962822,0.00016994,2]
[378684563,1754958681623,-187.35356594,0.00016994,2]
[378684564,1754958681632,-150.0,0.00016994,2]
[378684565,1754958681642,-150.0,0.00016994,2]
[378684566,1754958681654,-150.0,0.00016994,2]
[378684567,1754958681664,-150.0,0.00016994,2]
[378684568,1754958681673,-150.0,0.00016994,2]
[378684569,1754958681682,-151.0,0.00016995,2]
[378684570,1754958681692,-150.0,0.00016996,2]
[378684571,1754958681704,-150.0,0.00016996,2]
[378684572,1754958681713,-150.0,0.00016998,2]
[378684573,1754958681723,-759.888854,0.00017003,2]
[378684574,1754958681733,-759.888854,0.00017003,2]
[378684575,1754958681743,-1107.19,0.00017003,2]
[378684576,1754958681753,-646.57,0.00017003,2]
[378684577,1754958681763,-739.29,0.00017003,2]
[378684578,1754958681772,-541.35,0.00017003,2]
[378684579,1754958681782,-756.83,0.00017003,2]
[378684580,1754958681791,-400.0,0.00017003,2]
[378684581,1754958681803,-540.43,0.00017003,2]
[378684582,1754958681812,-880.76,0.00017003,2]
[378684583,1754958681822,-1331.32,0.00017003,2]
[378684584,1754958681832,-1152.75,0.00017003,2]
[378684585,1754958681842,-1103.08,0.00017003,2]
[378684586,1754958681852,-673.98,0.00017003,2]
[378684587,1754958681861,-667.16,0.00017003,2]
[378684588,1754958681871,-1238.08,0.00017003,2]
[378684589,1754958681881,-723.65,0.00017003,2]
[378684590,1754958681892,-741.47,0.00017003,2]
[378684591,1754958681901,-1093.69,0.00017003,2]
[378684592,1754958681911,-5867.06,0.00017003,2]
[378684593,1754958681920,-581.96,0.00017003,2]
[378684594,1754958681930,-189.720906,0.00017004,2]
[378684595,1754958681939,-151.0,0.00017004,2]
[378684596,1754958681950,-302.138667,0.00017004,2]
[378684597,1754958681960,-302.138667,0.00017004,2]
[378684598,1754958681970,-151.0,0.00017004,2]
[378684599,1754958681979,-810.42,0.00017004,2]
[378684600,1754958681989,-517.851066,0.00017004,2]
[378684601,1754958681999,-517.851066,0.00017004,2]
[378684602,1754958682010,-150.0,0.00017019,2]
[378684603,1754958682019,-550.96208031,0.00017021,2]
[378684604,1754958682029,-1000.0,0.00017021,2]
[378684605,1754958682039,-566.42798579,0.00017021,2]
[378684606,1754958682048,-957.12204654,0.00017021,2]
[378684607,1754958682058,-150.0,0.00017021,2]
[378684608,1754958682068,-150.0,0.00017025,2]
[378684609,1754958682078,-150.0,0.00017029,2]
[378684610,1754958682087,-150.0,0.00017031,2]
[378684611,1754958682096,-286.33354727,0.00017031,2]
[378684612,1754958682106,-150.0,0.00017034,2]
[378684613,1754958682116,-150.0,0.00017035,2]
[378684614,1754958682126,-158.522638,0.00017037,2]
[378684615,1754958682135,-158.522638,0.00017037,2]
[378684616,1754958682144,-229.09562967,0.00017037,2]
[378684617,1754958682154,-151.0,0.00017041,2]
[378684618,1754958682164,-150.0,0.00017049,2]
[378684619,1754958682173,-150.0,0.00017064,2]
[378684620,1754958682183,-12856.44550175,0.00017071,2]
[378684621,1754958682193,-150.0,0.00017073,2]
[378684622,1754958682203,-150.0,0.00017074,2]
[378684623,1754958682213,-1555.5,0.00017074,2]
[378684624,1754958682223,-150.0,0.00017082,2]
[378684625,1754958682232,-400.0,0.00017086,2]
[378684626,1754958682242,-400.0,0.00017086,2]
[378684627,1754958682252,-533.29252339,0.00017086,2]
[378684628,1754958682261,-400.0,0.00017086,2]
[378684629,1754958682271,-400.0,0.00017086,2]
[378684630,1754958682280,-245.24012994,0.00017086,2]
[378684631,1754958682290,-400.0,0.00017086,2]
[378684632,1754958682300,-400.0,0.00017086,2]
[378684633,1754958682310,-400.0,0.00017086,2]
[378684634,1754958682320,-400.0,0.00017086,2]
[378684635,1754958682330,-400.0,0.00017086,2]
[378684636,1754958682339,-411.92868673,0.00017086,2]
[378684637,1754958682349,-400.0,0.00017086,2]
[378684638,1754958682360,-400.0,0.00017086,2]
[378684639,1754958682369,-400.0,0.00017086,2]
[378684640,1754958682379,-400.0,0.00017086,2]
[378684641,1754958682390,-400.0,0.00017086,2]
[378684642,1754958682400,-400.0,0.00017086,2]
[378684643,1754958682411,-375.19074033,0.00017086,2]
[378684644,1754958682421,-400.0,0.00017086,2]
[378684645,1754958682438,-400.0,0.00017086,2]
[378684646,1754958682453,-400.0,0.00017086,2]
[378684647,1754958682464,-400.0,0.00017086,2]